fUSD/lending_fUSD_20240211
["ID","MTS","AMOUNT","RATE_DAILY","PERIOD"]
[313727309,1707622246313,-200.0,0.00023462,2]
[313727310,1707622246323,-215.74,0.00023484,2]
[313727311,1707622246333,-1148.99,0.00023647,2]
[313727312,1707622246342,-158.77,0.00023657,2]
[313727313,1707622246352,-150.99,0.00023657,2]
[313727314,1707622246362,-2000.0,0.00023697,2]
[313727315,1707622246371,-200.0,0.00023697,2]
[313727316,1707622246381,-160.74832245,0.00024249,2]
[313727317,1707622246390,-177.43,0.00024249,2]
[313727318,1707622246400,-1587.84,0.00024384,2]
[313727319,1707622246410,-3198.47,0.00024384,2]
[313727320,1707622246419,-157.0211,0.00024498,3]
[313727321,1707622246429,-157.0211,0.00024498,3]
[313727322,1707622246439,-157.0211,0.00024498,3]
[313727323,1707622246449,-157.0211,0.00024498,3]
[313727324,1707622246458,-157.0211,0.00024498,3]
[313727325,1707622246469,-215.74,0.00024602,2]
[313727326,1707622246481,-551.67,0.00024613,2]
[313727327,1707622246491,-250.0,0.00024658,2]
[313727328,1707622246500,-156.49972244,0.00024697,2]
[313727329,1707622246510,-1007.54975432,0.00024698,2]
[313727330,1707622246521,-22356.49606936,0.00024699,2]
[313727331,1707622246530,-2416.84728615,0.000247,2]
[313727332,1707622246543,-1026.15271385,0.000247,2]
[313727333,1707622246553,-15673.0,0.000247,2]
[313727334,1707622246563,-225.99,0.00024829,2]
[313727335,1707622246572,-1000.0,0.00024855,2]
[313727336,1707622246582,-210.0,0.00024868,2]
[313727337,1707622246592,-511.96172653,0.00025,2]
[313727338,1707622246601,-622.62871689,0.00025,2]
[313727339,1707622246611,-1908.91510247,0.00025,2]
[313727340,1707622246620,-168.26749515,0.00025,2]
[313727341,1707622246630,-938.20137126,0.00025,2]
[313727342,1707622246639,-18759.14330784,0.00025,4]
[313727343,1707622246649,-1261.83544187,0.00025,2]
[313727344,1707622246659,-697.6684985,0.00025,2]
[313727345,1707622246669,-305.09660322,0.00025,2]
[313727346,1707622246679,-946.10396075,0.00025,2]
[313727347,1707622246692,-155.0,0.00025,2]
[313727348,1707622246701,-160.34918469,0.00025,2]
[313727349,1707622246711,-1598.79926135,0.00025,2]
[313727350,1707622246721,-200.0,0.00025,2]
[313727351,1707622246730,-344.0,0.00025,2]
[313727352,1707622246739,-2800.0,0.00025,2]
[313727353,1707622246749,-350.0,0.00025,3]
[313727354,1707622246759,-256.09704521,0.0002501,2]
[313727355,1707622246772,-2743.90295479,0.0002501,2]
[313727356,1707622246781,-80.59704672,0.0002502,2]
[313727357,1707622246811,-1082.06353983,0.0002502,2]
[313727358,1707622246846,-1837.33941345,0.0002502,2]
[313727359,1707622246856,-538.21496326,0.0002503,2]
[313727360,1707622246868,-1040.65669349,0.0002503,2]
[313727361,1707622246881,-530.35534409,0.0002503,2]
[313727362,1707622246904,-343.60980816,0.0002503,2]
[313727363,1707622255172,3184.26006245,0.00022093,7]
[313727364,1707622280790,300.0,0.00022008,2]
[313727365,1707622285336,1398.04260561,0.0002183,2]
[313727366,1707622455417,502.94,0.00021585,2]
[313727367,1707622508948,186.01,0.0001852,2]
[313727369,1707622927145,509.2,0.00020314,2]
[313727370,1707623055063,953.51,0.0002206,2]
[313727371,1707623115216,186.01,0.00017543,2]
[313727372,1707623117244,2046.76,0.00021929,2]
[313727373,1707623122865,150.24,0.0002195,2]
[313727374,1707623205781,2000.0,0.00022004,2]
[313727375,1707623217128,-286.8487648,0.00022105,2]
[313727376,1707623217150,-728.2138926,0.00022105,2]
[313727377,1707623217170,-297.04448897,0.00022106,2]
[313727378,1707623217191,-200.0,0.00022113,2]
[313727379,1707623217213,-862.6,0.00022167,2]
[313727380,1707623217237,-157.05,0.00022214,2]
[313727381,1707623217259,-250.0,0.00022232,2]
[313727382,1707623217280,-404.82352768,0.00022262,2]
[313727453,1707623394362,512.0,0.00020298,2]
[313727454,1707623404141,7743.20733194,0.00015,14]
[313727455,1707623404167,4880.14253872,0.00015,14]
[313727474,1707623432136,-200.0,0.00022122,2]
[313727475,1707623432146,-250.0,0.00022174,2]
[313727476,1707623432155,-318.65647232,0.00022262,2]
[313727477,1707623432165,-500.0,0.00022336,2]
[313727478,1707623432174,-736.44,0.00022403,2]
[313727479,1707623432184,-250.0,0.0002241,2]
[313727480,1707623432193,-161.04698224,0.00022517,2]
[313727481,1707623432202,-1000.0,0.00022524,2]
[313727482,1707623432212,-512.0,0.00022562,2]
[313727483,1707623432222,-157.05,0.00022599,2]
[313727484,1707623432231,-215.74,0.00022838,2]
[313727485,1707623432241,-999.99,0.00022838,2]
[313727486,1707623432250,-1671.6269088,0.00022838,2]
[313727514,1707623433413,-1743.3126006,0.00022838,2]
[313727517,1707623433425,-935.54605528,0.00022838,2]
[313727520,1707623433449,-3757.86443532,0.00022838,2]
[313727522,1707623433458,-299.99,0.00022838,7]
[313727524,1707623433468,-540.59175319,0.00022895,2]
[313727526,1707623433477,-257.94712628,0.00022898,2]
[313727573,1707623438128,-514.01040825,0.00022898,2]
[313727574,1707623438139,-313.9906,0.00022899,2]
[313727575,1707623438149,-1000.0,0.00022899,2]
[313727576,1707623438159,-150.0,0.00022974,2]
[313727577,1707623438169,-150.0,0.00022974,2]
[313727578,1707623438178,-352.49,0.00022975,2]
[313727579,1707623438187,-157.05,0.00022985,2]
[313727580,1707623438197,-377.98602885,0.00022996,2]
[313727581,1707623438207,-298.98229506,0.00022996,2]
[313727582,1707623438216,-1000.0,0.00022997,2]
[313727583,1707623438225,-37602.6951459,0.00022998,2]
[313727584,1707623438238,-691.20961858,0.00022998,2]
[313727585,1707623438262,-64778.41829037,0.00022998,2]
[313727586,1707623438279,-26943.23966081,0.00022998,2]
[313727587,1707623438288,-57561.85173106,0.00022999,2]
[313727588,1707623438315,-421.33100416,0.00022999,2]
[313727589,1707623438587,2344.58,0.00022,2]
[313727590,1707623438609,-3923.53932284,0.00022999,2]
[313727591,1707623438665,-355.10787544,0.00022999,2]
[313727592,1707623438677,-8358.53025265,0.00022999,2]
[313727593,1707623438851,-27262.11235407,0.00022999,2]
[313727594,1707623438864,-190897.91845233,0.00022999,2]
[313727595,1707623438876,-2607.54162794,0.00023,2]
[313727596,1707623438886,-1000.0,0.00023,2]
[313727597,1707623438897,-3132.52,0.00023,2]
[313727598,1707623438916,-1395.01857527,0.00023017,2]
[313727599,1707623438930,-166.62,0.00023211,2]
[313727601,1707623438940,-1395.01857527,0.00023354,2]
[313727603,1707623438949,-1031.1517,0.00023359,2]
[313727605,1707623438959,-466.9326,0.00023359,2]
[313727607,1707623438968,-157.05,0.00023371,2]
[313727609,1707623438977,-151.0211,0.00023448,3]
[313727611,1707623438986,-151.0211,0.00023448,3]
[313727613,1707623438996,-151.0211,0.00023448,3]
[313727615,1707623439005,-151.0211,0.00023448,3]
[313727617,1707623439014,-151.0211,0.00023448,3]
[313727619,1707623439023,-151.0211,0.00023448,3]
[313727622,1707623439033,-151.0211,0.00023448,3]
[313727625,1707623439042,-151.0211,0.00023448,3]
[313727628,1707623439052,-151.0211,0.00023448,3]
[313727630,1707623439061,-1548.82,0.00023458,2]
[313727632,1707623439070,-1548.82,0.00023458,2]
[313727634,1707623439080,-1548.82,0.00023458,2]
[313727636,1707623439089,-1548.82,0.00023458,2]
[313727638,1707623439098,-1548.82,0.00023458,2]
[313727640,1707623439108,-1548.82,0.00023458,2]
[313727642,1707623439117,-1548.82,0.00023458,2]
[313727644,1707623439127,-1548.82,0.00023458,2]
[313727647,1707623439136,-1548.82,0.00023458,2]
[313727649,1707623439146,-1548.82,0.00023458,2]
[313727651,1707623439155,-1548.82,0.00023458,2]
[313727653,1707623439165,-1548.82,0.00023458,2]
[313727654,1707623439174,-1548.82,0.00023458,2]
[313727656,1707623439184,-1548.82,0.00023458,2]
[313727657,1707623439193,-1548.82,0.00023458,2]
[313727658,1707623439202,-1548.82,0.00023458,2]
[313727659,1707623439212,-1548.82,0.00023458,2]
[313727660,1707623439221,-1548.82,0.00023458,2]
[313727661,1707623439231,-1548.82,0.00023458,2]
[313727662,1707623439240,-1548.82,0.00023458,2]
[313727663,1707623439253,-1548.82,0.00023458,2]
[313727664,1707623439263,-1548.82,0.00023458,2]
[313727665,1707623439271,-1548.82,0.00023458,2]
[313727666,1707623439281,-1548.87124813,0.00023458,2]
[313727667,1707623439291,-449323.55071789,0.00023459,2]
[313727668,1707623439302,-953.51,0.00023704,2]
[313727669,1707623439312,-161.04698223,0.00023748,2]
[313727670,1707623439322,-1395.01857527,0.00023764,2]
[313727671,1707623439332,-1395.01857527,0.00023982,2]
[313727672,1707623439341,-1395.01857527,0.00024163,2]
[313727673,1707623439351,-1323.2,0.00024384,2]
[313727674,1707623439362,-2665.39,0.00024384,2]
[313727675,1707623439371,-1395.01857527,0.0002457,2]
[313727676,1707623439381,-150.0,0.00024593,2]
[313727677,1707623439391,-150.0,0.00024594,2]
[313727678,1707623439400,-772.78127168,0.00024594,2]
[313727679,1707623439410,-150.0,0.00024594,2]
[313727680,1707623439419,-150.0,0.00024596,2]
[313727681,1707623439428,-208.17144651,0.00024609,2]
[313727682,1707623439438,-150.0,0.0002461,2]
[313727683,1707623439448,-150.0,0.00024612,2]
[313727684,1707623439458,-150.0,0.00024618,2]
[313727685,1707623439467,-150.0,0.00024619,2]
[313727686,1707623439476,-150.0,0.00024622,2]
[313727687,1707623439486,-150.0,0.00024624,2]
[313727688,1707623439496,-150.0,0.00024631,2]
[313727689,1707623439506,-150.0,0.00024631,2]
[313727690,1707623439516,-150.0,0.00024632,2]
[313727691,1707623439530,-150.0,0.00024632,2]
[313727692,1707623439540,-150.0,0.00024633,2]
[313727693,1707623439552,-150.0,0.00024634,2]
[313727694,1707623439562,-150.0,0.00024639,2]
[313727695,1707623439572,-150.0,0.0002465,2]
[313727696,1707623439582,-150.0,0.00024652,2]
[313727697,1707623439593,-150.0,0.00024655,2]
[313727698,1707623439603,-250.0,0.00024658,2]
[313727699,1707623439613,-150.0,0.00024658,2]
[313727700,1707623439623,-150.0,0.00024659,2]
[313727701,1707623439633,-150.0,0.00024669,2]
[313727702,1707623439643,-150.0,0.00024672,2]
[313727703,1707623439653,-150.0,0.00024676,2]
[313727704,1707623439663,-150.0,0.00024684,2]
[313727705,1707623439675,-150.0,0.00024686,2]
[313727706,1707623439685,-150.0,0.00024687,2]
[313727707,1707623439695,-150.0,0.00024692,2]
[313727708,1707623439704,-150.0,0.00024692,2]
[313727709,1707623439714,-150.0,0.00024692,2]
[313727710,1707623439723,-150.0,0.00024694,2]
[313727711,1707623439733,-150.0,0.00024702,2]
[313727712,1707623439743,-150.0,0.00024708,2]
[313727713,1707623439757,-150.0,0.00024717,2]
[313727714,1707623439768,-150.0,0.00024717,2]
[313727715,1707623439778,-150.0,0.00024718,2]
[313727716,1707623439787,-150.0,0.0002472,2]
[313727717,1707623439796,-150.0,0.00024726,2]
[313727718,1707623439810,-150.0,0.00024727,2]
[313727719,1707623439819,-150.0,0.00024731,2]
[313727720,1707623439829,-157.80304487,0.00024731,2]
[313727721,1707623439840,-150.0,0.00024733,2]
[313727723,1707623439851,-150.0,0.00024736,2]
[313727724,1707623439862,-150.0,0.00024738,2]
[313727725,1707623439871,-150.0,0.00024744,2]
[313727726,1707623439881,-150.0,0.00024747,2]
[313727727,1707623439891,-150.0,0.00024748,2]
[313727728,1707623439900,-150.0,0.00024749,2]
[313727729,1707623439910,-150.0,0.00024752,2]
[313727730,1707623439919,-150.0,0.00024756,2]
[313727731,1707623439930,-150.0,0.00024758,2]
[313727732,1707623439940,-1395.01857527,0.00024758,2]
[313727733,1707623439949,-150.0,0.00024763,2]
[313727734,1707623439959,-150.0,0.00024764,2]
[313727735,1707623439968,-150.0,0.00024765,2]
[313727736,1707623439978,-150.0,0.00024765,2]
[313727737,1707623439987,-150.0,0.00024766,2]
[313727738,1707623439997,-150.0,0.00024767,2]
[313727739,1707623440007,-150.0,0.00024769,2]
[313727740,1707623440017,-150.0,0.00024771,2]
[313727741,1707623440027,-150.0,0.00024772,2]
[313727742,1707623440037,-150.0,0.00024774,2]
[313727743,1707623440048,-150.0,0.00024778,2]
[313727744,1707623440058,-150.0,0.00024779,2]
[313727745,1707623440068,-150.0,0.0002478,2]
[313727746,1707623440078,-150.0,0.00024782,2]
[313727747,1707623440088,-150.0,0.00024787,2]
[313727748,1707623440097,-150.0,0.00024791,2]
[313727749,1707623440107,-150.0,0.00024791,2]
[313727750,1707623440118,-150.0,0.00024803,2]
[313727751,1707623440128,-150.0,0.00024807,2]
[313727752,1707623440139,-150.0,0.00024808,2]
[313727753,1707623440453,-150.0,0.00024809,2]
[313727754,1707623440526,-150.0,0.0002481,2]
[313727755,1707623440539,-150.0,0.00024816,2]
[313727756,1707623440553,-155.70095593,0.00024819,2]
[313727757,1707623440563,-150.0,0.00024825,2]
[313727758,1707623440574,-512.0,0.00024825,2]
[313727759,1707623440585,-150.0,0.00024829,2]
[313727760,1707623440596,-150.0,0.00024835,2]
[313727761,1707623440605,-150.0,0.00024835,2]
[313727762,1707623440616,-150.0,0.00024844,2]
[313727763,1707623440626,-153.2521793,0.00024844,2]
[313727764,1707623440637,-150.0,0.00024846,2]
[313727765,1707623440647,-150.0,0.00024855,2]
[313727766,1707623440657,-150.0,0.00024856,2]
[313727767,1707623440668,-150.0,0.00024856,2]
[313727768,1707623440678,-150.0,0.00024856,2]
[313727769,1707623440687,-151.58055429,0.00024857,2]
[313727770,1707623440698,-150.0,0.00024857,2]
[313727771,1707623440707,-150.0,0.00024857,2]
[313727772,1707623440718,-150.0,0.00024857,2]
[313727773,1707623440729,-150.0,0.00024863,2]
[313727774,1707623440738,-150.0,0.00024863,2]
[313727775,1707623440748,-346.391916,0.00024865,2]
[313727776,1707623440758,-150.0,0.00024865,2]
[313727777,1707623440769,-496.18273898,0.00024866,2]
[313727778,1707623440779,-150.0,0.00024914,2]
[313727779,1707623440789,-161.04698223,0.00024978,2]
[313727780,1707623440801,-739.59499646,0.00025,2]
[313727781,1707623440811,-511.96172653,0.00025,2]
[313727782,1707623440822,-323.60689538,0.00025,2]
[313727783,1707623440833,-622.62871689,0.00025,2]
[313727784,1707623440842,-310.38143406,0.00025,2]
[313727785,1707623440854,-296.17904147,0.00025,2]
[313727786,1707623440864,-3000.0,0.00025,2]
[313727787,1707623440874,-1651.04294485,0.00025005,2]
[313727788,1707623440884,-3000.0,0.0002501,2]
[313727789,1707623440894,-3000.0,0.0002502,2]
[313727790,1707623440903,-3000.0,0.0002503,2]
[313727791,1707623440913,-3000.0,0.0002504,2]
[313727792,1707623440923,-3000.0,0.0002505,2]
[313727793,1707623440933,-3000.0,0.0002506,2]
[313727794,1707623440944,-3000.0,0.0002507,2]
[313727795,1707623440954,-3000.0,0.0002508,2]
[313727796,1707623440963,-407776.99005347,0.0002509,2]
[313727797,1707623440973,-3000.0,0.0002509,2]
[313727798,1707623440983,-3000.0,0.000251,2]
[313727799,1707623440992,-400.26775377,0.00025105,2]
[313727800,1707623441002,-3000.0,0.0002511,2]
[313727801,1707623441012,-944.85000106,0.00025118,2]
[313727802,1707623441023,-158.63695817,0.00025119,2]
[313727803,1707623441032,-3000.0,0.0002512,2]
[313727804,1707623441042,-3000.0,0.0002513,2]
[313727805,1707623441054,-4427.427189,0.0002514,2]
[313727806,1707623441063,-210.0,0.00025272,2]
[313727807,1707623441073,-1395.01857527,0.00025314,2]
[313727808,1707623441083,-1000.0,0.0002534,2]
[313727809,1707623441093,-953.51,0.00025348,2]
[313727810,1707623441102,-1395.01857527,0.00025571,2]
[313727811,1707623441111,-1000.0,0.000258,2]
[313727812,1707623441122,-1395.01857527,0.00025932,2]
[313727813,1707623441133,-168.4,0.00026018,2]
[313727814,1707623441143,-1395.01857529,0.00026075,2]
[313727815,1707623441153,-242.26284484,0.0002613,2]
[313727816,1707623441163,-207.0,0.00026133,2]
[313727817,1707623441173,-205.0,0.00026133,2]
[313727818,1707623441184,-204.0,0.00026133,2]
[313727819,1707623441194,-1651.04294476,0.00026158,2]
[313727820,1707623441204,-161.04698223,0.00026209,2]
[313727821,1707623441218,-953.51,0.00026992,2]
[313727822,1707623441228,-418.42903968,0.00027,2]
[313727823,1707623441238,-400.0,0.00027,3]
[313727824,1707623441248,-512.0,0.00027089,2]
[313727825,1707623441258,-1651.04294476,0.0002731,2]
[313727826,1707623441267,-155.0,0.00027397,2]
[313727827,1707623441277,-202.64,0.00027397,2]
[313727828,1707623441287,-4054.76,0.00027397,2]
[313727829,1707623441297,-1911.36148725,0.000274,2]
[313727830,1707623441309,-215.74,0.00027406,2]
[313727831,1707623441319,-161.04698223,0.00027439,2]
[313727832,1707623441330,-157.0211,0.00027498,3]
[313727833,1707623441339,-157.0211,0.00027498,3]
[313727834,1707623441350,-157.0211,0.00027498,3]
[313727835,1707623441359,-157.0211,0.00027498,3]
[313727836,1707623441369,-157.0211,0.00027498,3]
[313727837,1707623441379,-157.0211,0.00027498,3]
[313727838,1707623441389,-155.0,0.000275,2]
[313727839,1707623441399,-202.64,0.00027556,2]
[313727840,1707623441409,-202.64,0.00027714,2]
[313727841,1707623441419,-202.64,0.00027872,2]
[313727842,1707623441429,-207.0,0.00027916,5]
[313727843,1707623441439,-219.19154881,0.00027999,2]
[313727844,1707623441448,-482.97308709,0.00027999,2]
[313727845,1707623441458,-132619.04367547,0.00028,2]
[313727846,1707623441468,-643.82355508,0.00028,2]
[313727847,1707623441478,-202.64,0.0002803,2]
[313727848,1707623441489,-1000.0,0.00028155,2]
[313727849,1707623441500,-202.64,0.00028189,2]
[313727850,1707623441511,-202.64,0.00028347,2]
[313727851,1707623441522,-1000.0,0.000285,2]
[313727852,1707623441534,-202.64,0.00028505,2]
[313727853,1707623441545,-953.51,0.00028636,2]
[313727854,1707623441563,-202.64,0.00028664,2]
[313727855,1707623441576,-161.04698223,0.0002867,2]
[313727856,1707623441588,-155.0,0.00028767,2]
[313727857,1707623441600,-202.64,0.00028822,2]
[313727858,1707623441611,-739.09271909,0.00029,15]
[313727859,1707623441623,-450.0,0.00029,3]
[313727860,1707623441635,-256.80819078,0.00029,2]
[313727861,1707623441648,-154.73528899,0.00029,2]
[313727862,1707623441659,-512.0,0.00029353,2]
[313727863,1707623441671,-500.0,0.0002966,2]
[313727864,1707623441683,-800.0,0.0002966,2]
[313727865,1707623441695,-207.0,0.00029698,8]
[313727866,1707623441707,-2120.31570878,0.00029764,28]
[313727867,1707623441719,-176.44955273,0.000298,2]
[313727868,1707623441731,-161.04698223,0.000299,2]
[313727869,1707623441743,-541.313,0.00029929,2]
[313727870,1707623441755,-397.0,0.00029929,2]
[313727871,1707623441767,-220.615,0.00029929,2]
[313727872,1707623441778,-962.817,0.00029929,2]
[313727873,1707623441790,-2903.207,0.00029929,2]
[313727874,1707623441806,-1893.311,0.00029929,2]
[313727875,1707623441817,-858.0,0.00029929,2]
[313727876,1707623441828,-205.804,0.00029929,2]
[313727877,1707623441844,-218.168,0.00029929,2]
[313727878,1707623441855,-1253.0,0.00029929,2]
[313727879,1707623441866,-1318.979,0.00029929,2]
[313727880,1707623441878,-433.233,0.00029929,2]
[313727881,1707623441889,-1946.0,0.00029929,2]
[313727882,1707623441901,-1013.296,0.00029929,2]
[313727883,1707623441912,-511.294,0.00029929,2]
[313727884,1707623441923,-238.898,0.00029929,2]
[313727885,1707623441934,-858.0,0.00029929,2]
[313727886,1707623441945,-382.635,0.00029929,2]
[313727887,1707623441956,-1151.412,0.00029929,2]
[313727888,1707623441966,-191.605,0.00029929,2]
[313727889,1707623441977,-453.0,0.00029929,2]
[313727890,1707623441987,-346.711,0.00029929,2]
[313727891,1707623441996,-733.822,0.00029929,2]
[313727892,1707623442007,-164.167,0.00029929,2]
[313727893,1707623442017,-7407.0,0.00029929,2]
[313727894,1707623442027,-2957.818,0.00029929,2]
[313727895,1707623442036,-2335.604,0.00029929,2]
[313727896,1707623442047,-505.16,0.00029929,2]
[313727897,1707623442061,-19823.0,0.00029929,2]
[313727898,1707623442071,-4276.336,0.00029929,2]
[313727899,1707623442081,-151.358,0.00029929,2]
[313727900,1707623442091,-1942.80451266,0.00029929,2]
[313727901,1707623442110,-344.19548734,0.00029929,2]
[313727902,1707623442120,-2670.04873042,0.00029929,2]
[313727903,1707623442133,-3362.23118336,0.00029929,2]
[313727904,1707623442146,-983.86399053,0.00029929,2]
[313727905,1707623442158,-1044.21172711,0.00029929,2]
[313727906,1707623442170,-123.08836858,0.00029929,2]
[313727907,1707623442180,-200.0,0.00029929,2]
[313727908,1707623442190,-436.64493573,0.00029929,2]
[313727924,1707623443053,-150.0,0.0002464,2]
[313727928,1707623443064,-150.0,0.00024719,2]
[313727931,1707623443074,-150.0,0.00024742,2]
[313727934,1707623443084,-150.0,0.00024782,2]
[313727936,1707623443093,-454.81,0.000299,2]
[313727939,1707623443102,-611.99506427,0.00029929,2]
[313727942,1707623443111,-181.629,0.00029929,2]
[313727945,1707623443121,-205.618,0.00029929,2]
[313727947,1707623443131,-151.091,0.00029929,2]
[313727948,1707623443141,-724.57827031,0.0003,6]
[313727949,1707623443152,-9690.3204777,0.0003,2]
[313727950,1707623443162,-473.05934107,0.0003,4]
[313727951,1707623443171,-155.23361237,0.0003,4]
[313727953,1707623443181,-155.0,0.0003,4]
[313727955,1707623443191,-3000.0,0.0003,2]
[313727957,1707623443200,-199.92195508,0.0003,4]
[313727958,1707623443210,-906.62500448,0.0003,4]
[313727959,1707623443219,-19144.12786605,0.0003,4]
[313727960,1707623443228,-369.81136266,0.0003,4]
[313727961,1707623443238,-585.82753942,0.0003,2]
[313727962,1707623443247,-405.61194202,0.0003,4]
[313727963,1707623443256,-1823.19018716,0.0003,4]
[313727964,1707623443265,-273.04691415,0.0003,5]
[313727965,1707623443275,-820.93147686,0.0003,4]
[313727966,1707623443284,-900.0,0.0003,120]
[313727967,1707623443293,-28564.78616366,0.0003,2]
[313727995,1707623443973,-155.18172773,0.00023447,2]
[313727997,1707623443983,-1651.04294476,0.00028463,2]
[313727999,1707623443993,-98186.27940436,0.0003,2]
[313728028,1707623444368,9505.77,0.00022,2]
[313728070,1707623444778,-204.23553071,0.00023446,2]
[313728072,1707623444788,-302.84547986,0.00023447,2]
[313728074,1707623444798,-132.3085624,0.00023447,2]
[313728078,1707623444827,-156.02951811,0.00023447,2]
[313728080,1707623444840,-1226.53723875,0.00023447,2]
[313728082,1707623444851,-2331.62604922,0.00023447,2]
[313728084,1707623444860,-1557.32071095,0.00023447,2]
[313728087,1707623444872,-1742.85154952,0.00023447,2]
[313728089,1707623444883,-156.25130745,0.00023447,2]
[313728091,1707623444893,-89360.21408722,0.0003,2]
[313728093,1707623444905,-6588.42106139,0.0003,2]
[313728095,1707623444918,-765.60441014,0.0003,2]
[313728098,1707623444931,-7539.868935,0.0003,2]
[313728100,1707623444943,-1718.56864073,0.0003,2]
[313728102,1707623444955,-1868.41475187,0.0003,2]
[313728104,1707623444969,-25124.183,0.0003,2]
[313728107,1707623444981,-30136.73459769,0.0003,2]
[313728109,1707623444998,-14221.6,0.0003,2]
[313728112,1707623445010,-497.20527719,0.0003,2]
[313728116,1707623445035,-842.12484904,0.00023446,2]
[313728119,1707623445053,-527.60914326,0.00023446,2]
[313728121,1707623445065,-3213.23571618,0.00023446,2]
[313728123,1707623445076,-156.47636841,0.00023446,2]
[313728125,1707623445086,-5928.16555069,0.0003,2]
[313728224,1707623446070,155.0,0.00021999,2]
[313728226,1707623446084,-296.51568297,0.00022262,7]
[313728228,1707623446094,-155.0,0.00023446,7]
[313728230,1707623446103,-156.37544769,0.00023446,2]
[313728232,1707623446113,-364.72801437,0.00023446,2]
[313728234,1707623446122,-379.80484028,0.00023446,2]
[313728235,1707623446132,-155.0,0.00023446,2]
[313728237,1707623446141,-1908.91510247,0.00025,2]
[313728239,1707623446150,-3958.86091222,0.0003,2]
[313728242,1707623446162,-6070.51464648,0.0003,2]
[313728243,1707623446173,-4955.38026143,0.0003,2]
[313728246,1707623446188,-302.52014702,0.0003,2]
[313728250,1707623446223,-1040.92958151,0.0003,2]
[313728252,1707623446235,-380165.7485714,0.0003,2]
[313728254,1707623446244,-154.32,0.0003,2]
[313728256,1707623446252,-4633.39,0.0003,3]
[313728258,1707623446262,-205.0,0.0003,2]
[313728259,1707623446271,-2177.07477,0.0003,2]
[313728261,1707623446281,-2177.07476,0.0003,2]
[313728263,1707623446290,-2177.07477,0.0003,2]
[313728265,1707623446299,-2177.07477,0.0003,2]
[313728267,1707623446310,-150.0,0.00030137,2]
[313728269,1707623446319,-953.51,0.00030279,2]
[313728271,1707623446328,-17502.0,0.000304,3]
[313728273,1707623446337,-150.0,0.00030714,2]
[313728274,1707623446347,-2177.07477,0.0003089,2]
[313728276,1707623446356,-17502.0,0.000309,5]
[313728278,1707623446365,-1000.0,0.00030971,2]
[313728280,1707623446374,-368.95110962,0.00031,4]
[313728282,1707623446383,-642.08889258,0.00031,7]
[313728283,1707623446393,-500.0,0.00031,3]
[313728285,1707623446443,-2014.42,0.00031,2]
[313728287,1707623446451,-1000.0,0.000312,2]
[313728289,1707623446461,-150.0,0.00031291,2]
[313728291,1707623446470,-156.99596799,0.0003148,4]
[313728293,1707623446479,-207.0,0.00031481,11]
[313728295,1707623446488,-157.0211,0.00031498,4]
[313728296,1707623446497,-157.0211,0.00031498,4]
[313728298,1707623446506,-155.0211,0.00031498,4]
[313728300,1707623446516,-512.0,0.00031617,2]
[313728302,1707623446526,-169.28,0.00031644,2]
[313728303,1707623446535,-180.0,0.00031644,2]
[313728305,1707623446545,-456.94674192,0.00031798,4]
[313728307,1707623446556,-959.57323446,0.00031799,4]
[313728309,1707623446566,-231702.58295805,0.000318,3]
[313728320,1707623446669,-374.89347238,0.00023458,10]